bitfinex/quotes_SOLUSD_20260114
["timestamp","ask_amount","ask_price","bid_price","bid_amount"]
[1768423030497,3.87018167,147.27,147.23,7.49114342]
[1768423030684,4.43915942,147.27,147.23,7.49114342]
[1768423031287,0.56897775,147.27,147.23,7.49114342]
[1768423033197,7.35926393,147.27,147.23,0.69915921]
[1768423033606,0.55985784,147.23,147.19,6.79363188]
[1768423033894,0.11742779,147.22,147.18,0.69915921]
[1768423034475,0.57847177,147.26,147.19,0.69915921]
[1768423034685,4.44865344,147.26,147.21,7.49217598]
[1768423034893,0.099,147.25,147.21,7.49217598]
[1768423035314,0.099,147.25,147.2,7.49245847]
[1768423035597,0.099,147.25,147.2,11.36264014]
[1768423037203,6.89032325,147.25,147.2,11.36264014]
[1768423038700,6.89032325,147.25,147.2,7.49245847]
[1768423040080,0.099,147.25,147.21,0.69915921]
[1768423041393,6.89020256,147.25,147.21,0.69915921]
[1768423041596,9.3683825,147.25,147.21,0.69915921]
[1768423041784,0.57367705,147.24,147.2,7.45517587]
[1768423042690,7.36937576,147.26,147.21,0.66187661]
[1768423043004,103.1,147.28,147.23,0.66187661]
[1768423043184,7.36800342,147.29,147.24,0.66187661]
[1768423043386,9.84618336,147.29,147.24,0.66187661]
[1768423044784,9.84618336,147.29,147.24,7.45336693]
[1768423045591,0.099,147.28,147.24,0.66187661]
[1768423045993,0.099,147.28,147.24,7.45350652]
[1768423047097,0.10374677,147.26,147.22,0.66187661]
[1768423047301,2.58192671,147.26,147.22,0.66187661]
[1768423047506,3.05665171,147.27,147.23,0.66187661]
[1768423047696,0.57847177,147.27,147.23,0.66187661]
[1768423048091,3.05665171,147.28,147.23,0.66187661]
[1768423048524,0.57847177,147.28,147.23,0.66187661]
[1768423049013,0.57847177,147.29,147.24,0.66187661]
[1768423049193,3.05665171,147.29,147.24,7.453326]
[1768423049394,0.099,147.28,147.24,7.453326]
[1768423049603,2.57717994,147.28,147.23,0.66187661]
[1768423049802,3.05185699,147.27,147.23,0.66187661]
[1768423050009,3.021857,147.27,147.23,0.66187661]
[1768423050511,2.47817994,147.25,147.21,16.23426987]
[1768423050693,23.76270479,147.29,147.21,16.23426987]
[1768423050892,2.47817994,147.26,147.21,16.23426987]
[1768423051630,9.26895012,147.26,147.21,16.23426987]
[1768423051792,9.26895012,147.26,147.21,9.44139504]
[1768423051793,2.47817994,147.25,147.21,9.44139504]
[1768423051993,3.02665172,147.25,147.21,9.44139504]
[1768423052714,3.02665172,147.25,147.21,16.23440715]
[1768423052893,9.8174219,147.26,147.22,0.66187661]
[1768423053215,9.8174219,147.26,147.21,16.23440715]
[1768423053432,0.54397706,147.24,147.19,0.66187661]
[1768423053594,3.01775173,147.22,147.18,0.66187661]
[1768423054612,3.01775173,147.22,147.17,0.66187661]
[1768423054807,2.58599093,147.21,147.17,7.45671982]
[1768423055121,3.02665172,147.23,147.19,0.66187661]
[1768423055702,9.81904537,147.23,147.19,0.66187661]
[1768423056200,2.57717994,147.22,147.18,0.66187661]
[1768423056707,0.099,147.22,147.18,0.66187661]
[1768423057855,0.10344977,147.2,147.15,13.04187661]
[1768423058129,0.54847178,147.22,147.18,0.66187661]
[1768423058799,0.54847178,147.22,147.18,3.14005655]
[1768423059217,0.54847178,147.22,147.18,0.66187661]
[1768423060128,0.54847178,147.22,147.18,9.93426063]
[1768423061119,0.54847178,147.22,147.18,7.45608069]
[1768423061324,0.54847178,147.22,147.18,9.93426063]
[1768423062142,0.54847178,147.25,147.21,0.66187661]
[1768423062306,7.33977463,147.25,147.21,0.66187661]
[1768423062512,0.099,147.24,147.2,3.14005655]
[1768423062713,6.79130285,147.25,147.21,0.66187661]
[1768423062939,6.89030285,147.25,147.21,3.14005655]
[1768423063614,110.43889422,147.27,147.24,2.47817994]
[1768423063814,109.89042244,147.27,147.24,2.47817994]
[1768423064521,7.33838773,147.28,147.24,2.47817994]
[1768423065013,0.099,147.27,147.21,7.45480461]
[1768423065212,6.7907103,147.26,147.23,2.47817994]
[1768423065532,7.33468736,147.26,147.22,3.14005655]
[1768423065919,7.33918208,147.26,147.22,2.47817994]
[1768423066837,0.54847178,147.26,147.22,6.79254181]
[1768423067222,0.54847178,147.26,147.21,7.45468809]
[1768423068136,7.33930107,147.26,147.21,9.93286803]
[1768423069137,7.33930107,147.26,147.22,0.66187661]
[1768423071349,0.099,147.25,147.2,13.09181742]
[1768423071649,0.099,147.25,147.21,0.71181742]
[1768423072222,5.44308856,147.28,147.23,0.71181742]
[1768423072417,0.54397706,147.27,147.23,0.71181742]
[1768423073246,0.10781099,147.24,147.2,13.09181742]
[1768423073419,3.01343412,147.23,147.19,0.71181742]
[1768423073622,3.01343412,147.23,147.17,6.79459337]
[1768423073623,0.11208542,147.22,147.17,7.50641079]
[1768423073922,6.89032121,147.25,147.21,0.71181742]
[1768423074452,6.7908563,147.26,147.22,0.71181742]
[1768423075660,6.8898563,147.26,147.22,0.71181742]
[1768423076641,0.099,147.26,147.22,0.71181742]
[1768423076857,0.099,147.26,147.22,7.50436751]
[1768423077134,7.33746095,147.3,147.25,0.71181742]
[1768423078254,9.81510116,147.31,147.26,0.71181742]
[1768423078417,0.099,147.3,147.26,0.71181742]
[1768423078618,0.10344977,147.28,147.23,0.71181742]
[1768423079045,0.099,147.29,147.24,0.71181742]
[1768423079231,2.57717994,147.3,147.25,0.71181742]
[1768423079416,7.33330423,147.29,147.25,0.71181742]
[1768423080644,9.81148417,147.29,147.25,0.71181742]
[1768423080947,0.10344977,147.28,147.24,0.71181742]
[1768423081338,7.33779895,147.29,147.24,7.50340999]
[1768423081534,0.54847178,147.29,147.24,7.50340999]
[1768423081928,7.3380467,147.29,147.24,7.50340999]
[1768423082447,9.81622664,147.29,147.24,0.71181742]
[1768423082658,2.57717994,147.28,147.23,7.50377116]
[1768423083162,2.57717994,147.28,147.23,0.71181742]
[1768423083337,0.099,147.28,147.24,6.79152758]
[1768423083522,0.099,147.28,147.24,0.71181742]
[1768423083723,2.57717994,147.28,147.24,0.71181742]
[1768423084044,9.367328,147.28,147.24,0.71181742]
[1768423084636,0.099,147.28,147.24,0.71181742]
[1768423085147,0.60337706,147.27,147.21,12.38]
[1768423085326,0.10404377,147.26,147.21,19.17268864]
[1768423085722,0.10404377,147.26,147.22,6.79253029]
[1768423085937,0.10404377,147.26,147.21,12.38]
[1768423086125,0.10898717,147.22,147.18,6.79403523]
[1768423087236,0.10898717,147.22,147.18,7.50585265]
[1768423088147,0.60847178,147.26,147.19,0.71181742]
[1768423088333,3.08665172,147.26,147.2,3.18999736]
[1768423088539,2.47817994,147.25,147.21,0.71181742]
[1768423089129,0.60847178,147.24,147.17,0.71181742]
[1768423089333,0.099,147.22,147.17,7.50656406]
[1768423089550,0.60337706,147.21,147.17,0.71181742]
[1768423089750,2.47817994,147.2,147.17,0.71181742]
[1768423090433,2.47817994,147.18,147.15,19.17547569]
[1768423090634,2.47817994,147.19,147.16,6.79528692]
[1768423090841,0.69269354,147.23,147.15,12.38]
[1768423091040,2.47817994,147.21,147.15,12.38]
[1768423091443,2.47817994,147.21,147.16,23.78345189]
[1768423091854,2.47817994,147.2,147.16,23.78345189]
[1768423092532,2.47817994,147.2,147.17,0.71181742]
[1768423095157,6.79216078,147.23,147.16,23.78345189]
[1768423095158,2.47817994,147.21,147.19,0.71181742]
[1768423096451,0.69269354,147.23,147.19,0.71181742]
[1768423096754,2.47817994,147.22,147.19,7.50563544]
[1768423096929,2.47817994,147.23,147.2,13.09181742]
[1768423097131,0.69269354,147.25,147.21,0.71181742]
[1768423097345,3.17087348,147.24,147.2,13.09181742]
[1768423097633,2.47817994,147.21,147.18,19.88602201]
[1768423098054,2.47817994,147.22,147.19,6.79392939]
[1768423098252,0.69269354,147.25,147.2,0.71181742]
[1768423098560,2.47817994,147.23,147.2,7.50511593]
[1768423098935,0.69269354,147.24,147.2,7.50511593]
[1768423099250,103.79269354,147.27,147.21,0.71181742]
[1768423099444,2.47817994,147.26,147.21,0.71181742]
[1768423099753,106.27087348,147.27,147.21,0.71181742]
[1768423100748,106.27087348,147.27,147.22,7.47190715]
[1768423100951,3.19379697,147.26,147.22,7.47190715]
[1768423101454,4.58718381,147.26,147.22,7.47190715]
[1768423102528,0.71561703,147.26,147.22,7.47190715]
[1768423104337,4.58718381,147.26,147.22,7.47190715]
[1768423105736,0.71561703,147.26,147.22,7.47190715]
[1768423107762,0.71561703,147.26,147.22,7.47190715]
[1768423112169,0.71561703,147.26,147.22,7.47810107]
[1768423113374,106.97156678,147.27,147.18,12.38]
[1768423113375,0.71561703,147.22,147.18,12.38]
[1768423113578,0.71561703,147.21,147.18,12.38]
[1768423113750,0.71561703,147.23,147.18,36.84563072]
[1768423113950,0.71561703,147.23,147.19,0.68554572]
[1768423114756,0.71561703,147.25,147.2,7.47902398]
[1768423114977,0.71561703,147.25,147.21,0.68554572]
[1768423116782,0.71561703,147.25,147.22,0.68554572]
[1768423117075,107.68718381,147.27,147.22,0.68554572]
[1768423117279,103.81561703,147.27,147.22,0.68554572]
[1768423117579,0.71561703,147.26,147.22,0.68554572]
[1768423117782,0.71561703,147.26,147.23,3.87156678]
[1768423119557,0.71561703,147.26,147.23,10.66356305]
[1768423120883,0.71561703,147.26,147.23,6.79199627]
[1768423123776,0.71561703,147.31,147.27,0.68554572]
[1768423124015,0.1,147.34,147.33,3.5341499]
[1768423124164,1e-08,147.34,147.33,3.5341499]
[1768423124358,1e-08,147.34,147.33,3.4741499]
[1768423125480,0.71561703,147.37,147.33,3.4741499]
[1768423125962,0.71561703,147.37,147.34,6.78702321]
[1768423126160,0.81561703,147.39,147.34,7.47256893]
[1768423126371,4.58718381,147.38,147.34,7.47256893]
[1768423126574,0.1,147.39,147.34,0.68554572]
[1768423126782,3.87156678,147.36,147.33,10.26131365]
[1768423127082,4.58718381,147.37,147.33,22.64131365]
[1768423127962,4.58718381,147.37,147.33,23.32685937]
[1768423128175,4.58718381,147.37,147.33,40.29556906]
[1768423128465,4.58718381,147.38,147.34,0.68554572]
[1768423128660,0.68561704,147.38,147.34,0.68554572]
[1768423128861,0.1,147.39,147.35,0.68554572]
[1768423129263,0.1,147.4,147.34,3.87156678]
[1768423129264,0.1,147.4,147.37,0.68554572]
[1768423129485,3.87156678,147.42,147.38,0.68554572]
[1768423130099,3.87156678,147.42,147.39,0.68554572]
[1768423130272,6.78203734,147.45,147.39,0.68554572]
[1768423130586,3.87156678,147.44,147.39,0.68554572]
[1768423130782,3.87156678,147.42,147.39,0.68554572]
[1768423131301,3.87156678,147.41,147.38,13.05578495]
[1768423131471,0.70117757,147.42,147.38,13.05578495]
[1768423131794,3.87156678,147.41,147.38,13.05578495]
[1768423132593,4.57274435,147.42,147.38,13.05578495]
[1768423133092,6.78256088,147.44,147.39,0.67578495]
[1768423133093,3.87156678,147.43,147.39,0.67578495]
[1768423133264,4.57274435,147.44,147.39,0.67578495]
[1768423133990,0.70117757,147.44,147.39,0.67578495]
[1768423134190,0.70117757,147.45,147.4,0.67578495]
[1768423134397,0.70117757,147.44,147.4,0.67578495]
[1768423134593,4.57274435,147.44,147.4,0.67578495]
[1768423135089,0.70117757,147.44,147.4,0.67578495]
[1768423135390,0.70117757,147.44,147.4,7.45987086]
[1768423136084,0.67117758,147.44,147.4,7.45987086]
[1768423136790,9.60324351,147.46,147.42,0.67578495]
[1768423137088,5.73167673,147.46,147.42,0.67578495]
[1768423137292,5.73167673,147.46,147.45,0.67578495]
[1768423137293,5.00667673,147.46,147.45,0.67578495]
[1768423137688,5.00667673,147.46,147.43,13.05578495]
[1768423137898,5.00667673,147.46,147.44,0.67578495]
[1768423138585,4.97667671,147.46,147.44,0.67578495]
[1768423138976,4.1313489,147.46,147.44,6.7823789]
[1768423139377,0.70117757,147.5,147.44,10.65394568]
[1768423139576,0.70117757,147.51,147.45,3.87156678]
[1768423139984,0.70117757,147.47,147.43,12.38]
[1768423140176,3.87156678,147.49,147.44,23.7383876]
[1768423140381,0.70117757,147.49,147.44,23.7383876]
[1768423141078,0.70117757,147.47,147.43,12.38]
[1768423141405,0.70117757,147.5,147.43,23.03441247]
[1768423141581,0.70117757,147.5,147.44,3.87156678]
[1768423141903,4.57274435,147.5,147.44,3.87156678]
[1768423142090,0.70117757,147.47,147.43,12.38]
[1768423142395,4.57274435,147.45,147.43,12.38]
[1768423142791,0.70117757,147.44,147.43,12.38]
[1768423143293,0.70117757,147.45,147.43,12.38]
[1768423143700,0.70117757,147.48,147.43,19.16271167]
[1768423143895,3.87156678,147.46,147.43,19.16271167]
[1768423144091,0.70117757,147.47,147.43,19.16271167]
[1768423144283,3.87156678,147.46,147.43,19.16271167]
[1768423144604,4.57274435,147.46,147.43,19.16271167]
[1768423144898,4.57274435,147.46,147.43,12.38]
[1768423145101,0.70117757,147.46,147.43,19.16280251]
[1768423146287,4.57274435,147.47,147.43,19.16280251]
[1768423146493,4.57274435,147.48,147.43,19.16280251]
[1768423146697,4.57274435,147.48,147.43,36.12000253]
[1768423146875,4.57274435,147.51,147.44,3.87156678]
[1768423147077,4.57274435,147.51,147.45,10.65352676]
[1768423147482,4.57274435,147.53,147.46,3.87156678]
[1768423147807,0.70117757,147.55,147.47,3.87156678]
[1768423147994,0.1,147.57,147.52,3.87156678]
[1768423148187,0.1,147.57,147.53,16.23156678]
[1768423148394,0.1,147.57,147.53,12.36]
[1768423148882,0.80117757,147.57,147.53,12.36]
[1768423149094,0.70117757,147.55,147.53,12.36]
[1768423149591,4.67274435,147.57,147.53,12.36]
[1768423149899,0.70117757,147.56,147.53,12.36]
[1768423150284,0.70117757,147.54,147.53,10.91]
[1768423150489,0.70117757,147.54,147.5,12.36]
[1768423150697,0.60117757,147.53,147.5,12.36]
[1768423150899,3.87156678,147.51,147.47,0.67578495]
[1768423151198,10.65080772,147.51,147.47,0.67578495]
[1768423151403,3.87156678,147.51,147.47,0.67578495]
[1768423151604,10.74938931,147.52,147.47,0.67578495]
[1768423151799,3.87156678,147.51,147.47,0.67578495]
[1768423152296,6.87741704,147.53,147.47,0.67578495]
[1768423152493,4.46772257,147.52,147.47,0.67578495]
[1768423152717,3.87156678,147.51,147.47,0.67578495]
[1768423152878,4.46772257,147.52,147.47,0.67578495]
[1768423153375,17.61130004,147.52,147.47,0.67578495]
[1768423153989,39.32631394,147.57,147.47,0.67578495]
[1768423153990,0.199,147.57,147.51,0.67578495]
[1768423154190,17.21194069,147.57,147.52,3.54505273]
[1768423154877,0.1,147.57,147.53,0.67578495]
[1768423155082,0.1,147.57,147.54,0.67578495]
[1768423155426,0.1,147.57,147.52,13.78139825]
[1768423155601,0.1,147.57,147.52,3.54505273]
[1768423155806,10.23634552,147.56,147.52,3.54505273]
[1768423156113,7.46769895,147.57,147.52,3.54505273]
[1768423156114,17.11281053,147.57,147.52,3.54505273]
[1768423156297,6.87646501,147.57,147.53,0.67578495]
[1768423156502,6.87646501,147.57,147.52,2.86926778]
[1768423156503,34.65007901,147.57,147.52,2.86926778]
[1768423156697,34.65007901,147.57,147.52,3.54505273]
[1768423156888,10.23634552,147.55,147.52,2.86926778]
[1768423157089,0.59123394,147.55,147.52,2.86926778]
[1768423157283,6.77828238,147.53,147.48,10.91213047]
[1768423157505,6.77828238,147.53,147.47,0.67578495]
[1768423157506,7.36469242,147.53,147.47,0.67578495]
[1768423157683,10.23634552,147.52,147.47,10.91213047]
[1768423157883,10.23634552,147.52,147.48,0.67578495]
[1768423158605,10.34996537,147.52,147.47,0.67578495]
[1768423159110,24.4251659,147.53,147.46,10.23634552]
[1768423159411,17.01600653,147.5,147.44,17.01873898]
[1768423160189,17.01600653,147.5,147.44,6.78233622]
[1768423160384,10.23634552,147.5,147.44,17.01868174]
[1768423160687,0.70085606,147.51,147.46,10.23634552]
[1768423160893,0.70085606,147.51,147.45,6.78190193]
[1768423161100,0.70085606,147.51,147.47,10.23634552]
[1768423161412,0.70085606,147.51,147.47,10.92174104]
[1768423161805,0.72455279,147.53,147.48,0.68539552]
[1768423162114,0.64588563,147.52,147.48,10.23634552]
[1768423162305,0.64588563,147.52,147.48,10.92174104]
[1768423162921,0.64588563,147.52,147.48,0.68539552]
[1768423164108,7.42470108,147.52,147.48,0.68539552]
[1768423164708,6.77846274,147.53,147.49,0.68539552]
[1768423165206,7.42434837,147.53,147.49,0.68539552]
[1768423165414,13.72219909,147.53,147.48,0.68539552]
[1768423165791,0.72376612,147.52,147.48,0.68539552]
[1768423167403,7.02161684,147.52,147.48,0.68539552]
[1768423167602,16.94536155,147.54,147.49,0.68539552]
[1768423167603,6.77795823,147.54,147.49,0.68539552]
[1768423167921,0.72455279,147.55,147.5,0.68539552]
[1768423168210,7.02161684,147.53,147.48,0.68539552]
[1768423168423,6.29785072,147.53,147.48,0.68539552]
[1768423168710,6.94373635,147.53,147.48,0.68539552]
[1768423168916,12.46,147.57,147.52,0.68539552]
[1768423168917,0.1,147.57,147.52,0.68539552]
[1768423169223,6.94527846,147.54,147.48,0.68539552]
[1768423169388,6.29785072,147.52,147.48,0.68539552]
[1768423169592,0.72223943,147.53,147.46,6.29785072]
[1768423169593,6.77966101,147.5,147.46,0.68539552]
[1768423169786,13.72642081,147.5,147.46,0.68539552]
[1768423170019,6.29785072,147.49,147.44,0.68539552]
[1768423172112,7.42857009,147.5,147.45,0.68539552]
[1768423172312,13.72642081,147.5,147.45,0.68539552]
[1768423172516,7.42857009,147.5,147.45,0.68539552]
[1768423172694,13.72642081,147.5,147.45,0.68539552]
[1768423173713,6.29785072,147.49,147.45,0.68539552]
[1768423173914,13.07821409,147.49,147.45,0.68539552]
[1768423174110,13.7265676,147.5,147.45,0.68539552]
[1768423174299,6.7798078,147.5,147.45,0.68539552]
[1768423174612,13.80142464,147.5,147.45,0.68539552]
[1768423174911,13.07765852,147.5,147.45,0.68539552]
[1768423175114,6.7798078,147.5,147.45,0.68539552]
[1768423175435,17.59089478,147.54,147.47,0.68539552]
[1768423175714,7.02161684,147.53,147.48,0.68539552]
[1768423175888,6.94451515,147.52,147.48,0.68539552]
[1768423176092,0.64666443,147.52,147.48,0.68539552]
[1768423176302,6.94451515,147.52,147.48,0.68539552]
[1768423176995,6.94527846,147.5,147.46,0.68539552]
[1768423177192,6.91527845,147.5,147.46,0.68539552]
[1768423177994,13.69518849,147.5,147.46,0.68539552]
[1768423179114,13.80198254,147.51,147.46,0.68539552]
[1768423180192,7.50413182,147.51,147.46,6.98324624]
[1768423180894,6.7790409,147.52,147.48,0.68539552]
[1768423181597,7.39522652,147.52,147.48,0.68539552]
[1768423181804,9.86434216,147.52,147.48,0.68539552]
[1768423181996,0.72346912,147.51,147.46,3.15451116]
[1768423182295,6.77966101,147.5,147.46,3.15451116]
[1768423182495,7.47267166,147.51,147.47,0.68539552]
[1768423182723,7.47267166,147.51,147.47,3.15451116]
[1768423182900,6.77889188,147.52,147.48,0.68539552]
[1768423183727,2.46911564,147.55,147.51,0.68539552]
[1768423183912,19.41194737,147.56,147.51,0.68539552]
[1768423184117,0.72455279,147.55,147.51,0.68539552]
[1768423184319,7.50233906,147.55,147.51,3.15451116]
[1768423185013,6.77708249,147.56,147.52,0.68539552]
[1768423185225,7.36356811,147.56,147.52,0.68539552]
[1768423185396,3.19228776,147.55,147.5,0.68539552]
[1768423185601,3.05696812,147.54,147.48,3.15451116]
[1768423185827,0.58785248,147.54,147.5,0.68539552]
[1768423186526,3.05830779,147.52,147.47,0.68539552]
[1768423186821,0.72049265,147.51,147.47,0.68539552]
[1768423187212,36.08275719,147.54,147.45,6.78176401]
[1768423187213,0.59050516,147.5,147.45,0.68539552]
[1768423187407,0.59050516,147.5,147.46,0.68539552]
[1768423187715,2.46911564,147.5,147.46,0.68539552]
[1768423187917,3.19228776,147.5,147.46,0.68539552]
[1768423188932,9.97207708,147.5,147.46,0.68539552]
[1768423191939,7.44202246,147.52,147.46,0.68539552]
[1768423192240,9.9111381,147.52,147.46,0.68539552]
[1768423192738,9.89511943,147.53,147.47,0.69977202]
[1768423194337,9.89511943,147.53,147.48,0.69977202]
[1768423195136,2.46911564,147.52,147.48,0.69977202]
[1768423195441,0.64752081,147.5,147.45,0.69977202]
[1768423195608,2.46911564,147.52,147.46,0.69977202]
[1768423195809,9.24757146,147.53,147.47,0.69977202]
[1768423196223,9.89509227,147.53,147.47,0.69977202]
[1768423197036,7.42597663,147.53,147.48,0.69977202]
[1768423197345,9.89509227,147.53,147.48,0.69977202]
[1768423200955,9.24789402,147.52,147.48,0.69977202]
[1768423201154,3.11678871,147.51,147.46,0.69977202]
[1768423201353,2.46911564,147.51,147.46,0.69977202]
[1768423201574,0.64782231,147.47,147.43,0.69977202]
[1768423201852,2.46911564,147.46,147.42,0.69977202]
[1768423202224,3.08693796,147.47,147.42,0.69977202]
[1768423203038,2.46911564,147.44,147.38,0.69977202]
[1768423203454,2.46911564,147.44,147.38,7.48492357]
[1768423203624,60.10014146,147.49,147.39,0.69977202]
[1768423203828,2.46911564,147.44,147.4,0.69977202]
[1768423204061,2.46911564,147.45,147.41,0.69977202]
[1768423204354,0.61782082,147.46,147.41,0.69977202]
[1768423204561,0.66290108,147.48,147.41,0.69977202]
[1768423204742,2.46911564,147.46,147.41,0.69977202]
[1768423205243,9.25081931,147.46,147.41,0.69977202]
[1768423205636,9.91326959,147.46,147.41,0.69977202]
[1768423206756,6.78027027,147.49,147.43,0.69977202]
[1768423206955,2.46911564,147.49,147.43,3.16888766]
[1768423207264,9.91086893,147.52,147.46,0.69977202]
[1768423207631,0.61782082,147.51,147.46,0.69977202]
[1768423207836,3.13156592,147.5,147.44,0.69977202]
[1768423208139,2.46911564,147.51,147.46,0.69977202]
[1768423208332,9.91086893,147.52,147.46,0.69977202]
[1768423208534,6.77840138,147.53,147.48,0.69977202]
[1768423208728,2.46911564,147.52,147.48,0.69977202]
[1768423208936,3.13156592,147.52,147.48,0.69977202]
[1768423209150,3.08738275,147.51,147.46,0.69977202]
[1768423209639,3.13112409,147.5,147.46,0.69977202]
[1768423210257,3.13201672,147.52,147.47,0.69977202]
[1768423210558,9.24751702,147.53,147.48,0.69977202]
[1768423210960,9.9104181,147.53,147.48,0.69977202]
[1768423212345,7.44130246,147.53,147.48,0.69977202]
[1768423212749,0.61782082,147.52,147.48,0.69977202]
[1768423212932,0.66245028,147.51,147.46,3.16888766]
[1768423213135,0.61826711,147.5,147.46,0.69977202]
[1768423213566,3.08738275,147.5,147.46,0.69977202]
[1768423213936,0.66200845,147.49,147.44,3.16888766]
[1768423214137,0.61870452,147.48,147.44,0.69977202]
[1768423214362,7.39965724,147.48,147.44,0.69977202]
[1768423214562,9.86877288,147.48,147.44,0.69977202]
[1768423214764,0.61870452,147.48,147.44,0.69977202]
[1768423215063,0.61870452,147.48,147.44,3.16888766]
[1768423215259,6.78022488,147.49,147.45,0.69977202]
[1768423215944,13.08094209,147.49,147.45,0.69977202]
[1768423216144,0.61782082,147.51,147.45,0.69977202]
[1768423216344,6.91853803,147.51,147.45,0.69977202]
[1768423217247,13.6981033,147.51,147.45,0.69977202]
[1768423217445,13.6981033,147.51,147.45,7.48172069]
[1768423217673,13.6981033,147.51,147.46,0.69977202]
[1768423218870,6.91853803,147.51,147.46,0.69977202]
[1768423219371,6.96316749,147.5,147.46,0.69977202]
[1768423220961,6.96316749,147.5,147.46,7.481049]
[1768423221158,6.96316749,147.5,147.46,0.69977202]
[1768423221354,0.66245028,147.5,147.46,0.69977202]
[1768423221573,6.30071721,147.51,147.47,0.68806608]
[1768423222070,6.99194197,147.52,147.47,0.68806608]
[1768423222872,0.69122476,147.52,147.47,6.98878329]
[1768423223048,0.69122476,147.54,147.49,0.68806608]
[1768423223245,6.99194197,147.54,147.49,0.68806608]
[1768423223461,0.69122476,147.54,147.49,0.68806608]
[1768423223662,6.89049759,147.53,147.49,0.68806608]
[1768423224563,109.87755528,147.55,147.47,7.46891755]
[1768423224564,0.59078468,147.51,147.47,7.46891755]
[1768423224764,6.89150189,147.51,147.47,0.68806608]
[1768423224974,6.99092752,147.52,147.47,7.46902837]
[1768423225375,10.92586952,147.52,147.47,7.46902837]
[1768423225568,17.01413859,147.53,147.48,0.68806608]
[1768423225880,0.59078468,147.52,147.48,0.68806608]
[1768423226175,10.82644389,147.52,147.48,0.68806608]
[1768423227263,10.82644389,147.52,147.48,7.46835734]
[1768423227459,0.59078468,147.52,147.48,7.46835734]
[1768423227999,10.23565921,147.53,147.49,0.68806608]
[1768423228849,10.23565921,147.52,147.49,0.68806608]
[1768423229052,10.92586952,147.52,147.48,7.46835734]
[1768423229775,10.82543959,147.53,147.49,0.68806608]
[1768423230575,10.23565921,147.52,147.49,0.68806608]
[1768423230881,10.82644389,147.51,147.47,0.68806608]
[1768423231455,0.68921606,147.5,147.46,6.78139805]
[1768423231764,10.23565921,147.52,147.47,0.68806608]
[1768423231963,10.82543959,147.52,147.47,0.68806608]
[1768423232154,10.92586952,147.51,147.47,0.68806608]
[1768423232550,0.59078468,147.5,147.45,0.68806608]
[1768423232753,0.59176899,147.48,147.43,7.47074728]
[1768423232969,10.8274282,147.48,147.43,7.47074728]
[1768423233384,10.8274282,147.48,147.44,0.68806608]
[1768423233869,0.59176899,147.48,147.44,7.47032545]
[1768423234979,10.92688397,147.5,147.45,0.68806608]
[1768423235978,0.69122476,147.53,147.47,0.68806608]
[1768423236160,0.58978038,147.52,147.47,0.68806608]
[1768423237082,10.82543959,147.52,147.47,0.68806608]
[1768423237287,4.44772228,147.52,147.47,0.68806608]
[1768423237581,11.22648712,147.52,147.47,7.46905154]
[1768423238277,4.44772228,147.52,147.47,7.46905154]
[1768423240976,4.44772228,147.52,147.48,0.68806608]
[1768423241276,0.79122476,147.57,147.51,0.68806608]
[1768423241477,0.58978038,147.56,147.51,0.68806608]
[1768423241689,4.44772228,147.56,147.47,23.73358598]
[1768423241866,0.58978038,147.52,147.48,0.68806608]
[1768423242065,4.54874621,147.52,147.48,0.62806616]
[1768423242272,4.54833414,147.5,147.46,12.36]
[1768423242484,4.54833414,147.5,147.44,16.95555361]
[1768423242485,0.69039224,147.5,147.45,6.78195998]
[1768423242792,4.54916666,147.52,147.45,27.59480184]
[1768423243165,0.69122476,147.52,147.45,27.59480184]
[1768423243882,4.54916666,147.52,147.45,27.59480184]
[1768423244179,4.54916666,147.52,147.46,0.68806608]
[1768423244786,11.3280874,147.52,147.46,7.4695276]
[1768423244976,0.69080431,147.5,147.45,0.68806608]
[1768423245374,0.69080431,147.5,147.46,0.68806608]
[1768423246186,4.54874621,147.5,147.46,0.68806608]
[1768423246482,4.50753844,147.49,147.44,0.68806608]
[1768423247083,4.50753844,147.49,147.45,0.68806608]
[1768423249664,11.28780968,147.49,147.45,0.68806608]
[1768423249863,0.69039224,147.48,147.43,0.68806608]
[1768423250087,4.50794639,147.47,147.42,19.83098466]
[1768423250469,4.50794639,147.47,147.43,0.69827351]
[1768423250669,4.56874662,147.48,147.44,0.69827351]
[1768423250865,4.56874662,147.48,147.44,0.63827353]
[1768423251079,11.34933659,147.48,147.44,0.63827353]
[1768423251386,0.68919612,147.47,147.41,10.64165589]
[1768423251565,4.54713802,147.47,147.41,6.78371399]
[1768423253067,4.54713802,147.47,147.42,0.69827351]
[1768423253386,4.54713802,147.47,147.42,7.48158671]
[1768423253592,4.54713802,147.47,147.43,0.69827351]
[1768423253791,11.32819606,147.47,147.43,0.69827351]
[1768423253984,11.32819606,147.47,147.41,0.69827351]
[1768423253985,0.71037684,147.44,147.41,0.69827351]
[1768423254176,0.71037684,147.44,147.4,7.48250422]
[1768423254376,0.71037684,147.44,147.4,0.69827351]
[1768423255169,0.71037684,147.44,147.4,7.4824122]